[Event "Masters Tournament (MTO)"]
[Site "Biel, Switzerland"]
[Date "2026.07.22"]
[Round "9.19"]
[White "Erne, Raphael"]
[Black "Aryan, Goyal"]
[Result "1-0"]
[TimeControl "100+30+30sec/move"]
[WhiteTitle "-"]
[BlackTitle "-"]
[WhiteFideId "1341928"]
[BlackFideId "366108825"]
[WhiteElo "2166"]
[BlackElo "2029"]

1. c4 {[%clk 01:40:49]} {[%emt 00:00:11]} e5 {[%clk 01:40:17]} {[%emt
00:00:41]} 2. g3 {[%clk 01:41:02]} {[%emt 00:00:18]} d6 {[%clk 01:40:30]}
{[%emt 00:00:18]} 3. Nc3 {[%clk 01:40:16]} {[%emt 00:01:16]} f5 {[%clk
01:39:30]} {[%emt 00:01:30]} 4. Nf3 {[%clk 01:39:13]} {[%emt 00:01:33]} Nf6
{[%clk 01:36:10]} {[%emt 00:03:50]} 5. d4 {[%clk 01:38:29]} {[%emt 00:01:13]}
e4 {[%clk 01:35:43]} {[%emt 00:00:57]} 6. Nh4 {[%clk 01:38:06]} {[%emt
00:00:54]} c6 {[%clk 01:33:18]} {[%emt 00:02:55]} 7. Bg5 {[%clk 01:36:40]}
{[%emt 00:01:55]} Be7 {[%clk 01:27:43]} {[%emt 00:06:06]} 8. e3 {[%clk
01:33:09]} {[%emt 00:04:00]} Ng4 {[%clk 01:24:16]} {[%emt 00:03:57]} 9. Bxe7
{[%clk 01:33:11]} {[%emt 00:00:28]} Qxe7 {[%clk 01:24:36]} {[%emt 00:00:10]} 10.
Ng2 {[%clk 01:29:44]} {[%emt 00:03:57]} Be6 {[%clk 01:22:07]} {[%emt 00:02:58]}
11. Be2 {[%clk 01:26:07]} {[%emt 00:04:08]} Nf6 {[%clk 01:21:04]} {[%emt
00:01:33]} 12. Nf4 {[%clk 01:21:59]} {[%emt 00:04:37]} Bf7 {[%clk 01:20:54]}
{[%emt 00:00:40]} 13. h4 {[%clk 01:21:34]} {[%emt 00:00:56]} Nbd7 {[%clk
01:14:48]} {[%emt 00:06:36]} 14. O-O {[%clk 01:07:35]} {[%emt 00:14:29]} O-O
{[%clk 01:03:27]} {[%emt 00:11:51]} 15. b4 {[%clk 01:04:55]} {[%emt 00:03:11]}
a5 {[%clk 00:49:56]} {[%emt 00:14:01]} 16. a3 {[%clk 01:00:53]} {[%emt
00:04:32]} axb4 {[%clk 00:44:15]} {[%emt 00:06:11]} 17. axb4 {[%clk 01:01:01]}
{[%emt 00:00:21]} Rxa1 {[%clk 00:43:28]} {[%emt 00:01:17]} 18. Qxa1 {[%clk
01:01:25]} {[%emt 00:00:06]} Nb6 {[%clk 00:43:41]} {[%emt 00:00:18]} 19. c5
{[%clk 00:59:14]} {[%emt 00:02:40]} Ra8 {[%clk 00:43:31]} {[%emt 00:00:40]} 20.
Qc1 {[%clk 00:52:37]} {[%emt 00:07:08]} Nbd5 {[%clk 00:40:56]} {[%emt
00:03:05]} 21. Ncxd5 {[%clk 00:43:31]} {[%emt 00:09:35]} Nxd5 {[%clk 00:41:00]}
{[%emt 00:00:27]} 22. Nxd5 {[%clk 00:43:29]} {[%emt 00:00:32]} Bxd5 {[%clk
00:40:46]} {[%emt 00:00:43]} 23. cxd6 {[%clk 00:42:39]} {[%emt 00:01:20]} Qxd6
{[%clk 00:40:46]} {[%emt 00:00:31]} 24. Qc5 {[%clk 00:42:58]} {[%emt 00:00:11]}
Qxc5 {[%clk 00:36:22]} {[%emt 00:04:48]} 25. bxc5 {[%clk 00:43:12]} {[%emt
00:00:21]} Ra2 {[%clk 00:36:36]} {[%emt 00:00:17]} 26. Re1 {[%clk 00:42:49]}
{[%emt 00:00:52]} Rb2 {[%clk 00:35:15]} {[%emt 00:01:51]} 27. Kf1 {[%clk
00:41:26]} {[%emt 00:01:53]} Kf8 {[%clk 00:34:36]} {[%emt 00:01:09]} 28. g4
{[%clk 00:37:01]} {[%emt 00:04:55]} g6 {[%clk 00:31:17]} {[%emt 00:03:49]} 29.
Kg2 {[%clk 00:30:09]} {[%emt 00:07:23]} Ke7 {[%clk 00:22:23]} {[%emt 00:09:24]}
30. Kg3 {[%clk 00:28:41]} {[%emt 00:01:58]} Kf6 {[%clk 00:19:59]} {[%emt
00:02:53]} 31. g5+ {[%clk 00:21:57]} {[%emt 00:07:14]} Kg7 {[%clk 00:14:53]}
{[%emt 00:05:36]} 32. Bf1 {[%clk 00:18:34]} {[%emt 00:03:53]} Ba2 {[%clk
00:13:53]} {[%emt 00:01:30]} 33. Re2 {[%clk 00:10:32]} {[%emt 00:08:32]} Rxe2
{[%clk 00:13:33]} {[%emt 00:00:51]} 34. Bxe2 {[%clk 00:10:58]} {[%emt
00:00:03]} Kf7 {[%clk 00:13:45]} {[%emt 00:00:18]} 35. Kf4 {[%clk 00:10:38]}
{[%emt 00:00:50]} Ke6 {[%clk 00:12:40]} {[%emt 00:01:35]} 36. h5 {[%clk
00:08:29]} {[%emt 00:02:39]} Bb3 {[%clk 00:05:59]} {[%emt 00:07:12]} 37. h6
{[%clk 00:06:28]} {[%emt 00:02:31]} Ke7 {[%clk 00:02:11]} {[%emt 00:04:17]} 38.
f3 {[%clk 00:03:59]} {[%emt 00:02:59]} exf3 {[%clk 00:01:15]} {[%emt 00:01:25]}
39. Bxf3 {[%clk 00:04:20]} {[%emt 00:00:10]} Ke6 {[%clk 00:00:49]} {[%emt
00:00:57]} 40. Be2 {[%clk 00:04:23]} {[%emt 00:00:27]} Ba2 {[%clk 00:00:39]}
{[%emt 00:00:40]} 41. Bd3 {[%clk 00:04:01]} {[%emt 00:00:52]} Ke7 {[%clk
00:25:17]} {[%emt 00:05:52]} 42. e4 {[%clk 00:32:06]} {[%emt 00:02:24]} fxe4
{[%clk 00:25:15]} {[%emt 00:00:32]} 43. Bxe4 {[%clk 00:32:26]} {[%emt
00:00:10]} Bg8 {[%clk 00:24:08]} {[%emt 00:01:37]} 44. Ke5 {[%clk 00:31:44]}
{[%emt 00:01:12]} Bf7 {[%clk 00:24:19]} {[%emt 00:00:18]} 45. Bf3 {[%clk
00:31:45]} {[%emt 00:00:30]} Be6 {[%clk 00:24:13]} {[%emt 00:00:36]} 46. Be2
{[%clk 00:32:00]} {[%emt 00:00:16]} Bd5 {[%clk 00:02:52]} {[%emt 00:21:50]} 47.
Bg4 {[%clk 00:31:50]} {[%emt 00:00:39]} Bc4 {[%clk 00:02:34]} {[%emt 00:00:49]}
48. Bc8 {[%clk 00:30:16]} {[%emt 00:02:04]} Bf1 {[%clk 00:00:34]} {[%emt
00:02:31]} 49. Bxb7 {[%clk 00:29:03]} {[%emt 00:01:42]} Bg2 {[%clk 00:00:53]}
{[%emt 00:00:11]} 50. Ba6 {[%clk 00:28:58]} {[%emt 00:00:37]} Bf3 {[%clk
00:00:37]} {[%emt 00:00:45]} 51. Bd3 {[%clk 00:28:49]} {[%emt 00:00:38]} Kf7
{[%clk 00:00:46]} {[%emt 00:00:22]} 52. Kd6 {[%clk 00:29:02]} {[%emt 00:00:16]}
Bg2 {[%clk 00:01:08]} {[%emt 00:00:08]} 53. Ba6 {[%clk 00:29:23]} {[%emt
00:00:09]} Bh1 {[%clk 00:01:26]} {[%emt 00:00:13]} 54. Bb7 {[%clk 00:29:47]}
{[%emt 00:00:05]} 1-0

[Event "Masters Tournament (MTO)"]
[Site "Biel, Switzerland"]
[Date "2026.07.22"]
[Round "9.20"]
[White "Pleschke, Julius Jonas"]
[Black "Angst, Oliver"]
[Result "1-0"]
[TimeControl "100+30+30sec/move"]
[WhiteTitle "-"]
[BlackTitle "-"]
[WhiteFideId "54734258"]
[BlackFideId "1334069"]
[WhiteElo "2280"]
[BlackElo "2121"]

1. d4 {[%clk 01:40:50]} {[%emt 00:00:11]} e6 {[%clk 01:40:26]} {[%emt
00:00:33]} 2. Nf3 {[%clk 01:39:54]} {[%emt 00:01:24]} b6 {[%clk 01:37:31]}
{[%emt 00:03:26]} 3. g3 {[%clk 01:37:38]} {[%emt 00:02:44]} Bb7 {[%clk
01:36:57]} {[%emt 00:01:07]} 4. Bg2 {[%clk 01:38:01]} {[%emt 00:00:06]} f5
{[%clk 01:37:18]} {[%emt 00:00:09]} 5. O-O {[%clk 01:37:58]} {[%emt 00:00:32]}
Nf6 {[%clk 01:37:44]} {[%emt 00:00:05]} 6. c4 {[%clk 01:37:56]} {[%emt
00:00:32]} Be7 {[%clk 01:37:30]} {[%emt 00:00:44]} 7. b3 {[%clk 01:35:25]}
{[%emt 00:03:01]} O-O {[%clk 01:37:39]} {[%emt 00:00:22]} 8. Bb2 {[%clk
01:35:32]} {[%emt 00:00:22]} a5 {[%clk 01:36:16]} {[%emt 00:01:53]} 9. a3
{[%clk 01:34:13]} {[%emt 00:01:49]} Qc8 {[%clk 01:18:58]} {[%emt 00:17:48]} 10.
Nc3 {[%clk 01:31:08]} {[%emt 00:03:34]} Ne4 {[%clk 01:10:23]} {[%emt 00:09:06]}
11. e3 {[%clk 01:28:16]} {[%emt 00:03:21]} Bf6 {[%clk 01:05:35]} {[%emt
00:05:19]} 12. Qc2 {[%clk 01:27:04]} {[%emt 00:01:42]} Nxc3 {[%clk 00:58:49]}
{[%emt 00:07:16]} 13. Bxc3 {[%clk 01:25:08]} {[%emt 00:02:26]} Be4 {[%clk
00:59:16]} {[%emt 00:00:03]} 14. Qd2 {[%clk 01:24:53]} {[%emt 00:00:45]} d6
{[%clk 00:54:32]} {[%emt 00:05:14]} 15. Ne1 {[%clk 01:22:28]} {[%emt 00:02:55]}
Bxg2 {[%clk 00:51:32]} {[%emt 00:03:30]} 16. Nxg2 {[%clk 01:22:39]} {[%emt
00:00:19]} Qe8 {[%clk 00:50:56]} {[%emt 00:01:06]} 17. Qc2 {[%clk 01:12:56]}
{[%emt 00:10:13]} Nd7 {[%clk 00:48:52]} {[%emt 00:02:34]} 18. Rad1 {[%clk
01:11:41]} {[%emt 00:01:44]} Rc8 {[%clk 00:42:13]} {[%emt 00:07:10]} 19. f3
{[%clk 00:53:36]} {[%emt 00:18:35]} g6 {[%clk 00:37:55]} {[%emt 00:04:49]} 20.
e4 {[%clk 00:50:46]} {[%emt 00:03:19]} fxe4 {[%clk 00:37:00]} {[%emt 00:01:25]}
21. Qxe4 {[%clk 00:49:24]} {[%emt 00:01:52]} e5 {[%clk 00:36:10]} {[%emt
00:01:19]} 22. dxe5 {[%clk 00:36:59]} {[%emt 00:12:56]} Bxe5 {[%clk 00:35:42]}
{[%emt 00:00:58]} 23. Be1 {[%clk 00:35:37]} {[%emt 00:01:51]} Bb2 {[%clk
00:31:18]} {[%emt 00:04:55]} 24. Qc2 {[%clk 00:28:57]} {[%emt 00:07:10]} Bxa3
{[%clk 00:23:44]} {[%emt 00:08:04]} 25. Bc3 {[%clk 00:29:26]} {[%emt 00:00:02]}
Ne5 {[%clk 00:23:26]} {[%emt 00:00:47]} 26. f4 {[%clk 00:26:58]} {[%emt
00:02:58]} Ng4 {[%clk 00:22:44]} {[%emt 00:01:12]} 27. Rde1 {[%clk 00:24:25]}
{[%emt 00:03:03]} Qc6 {[%clk 00:19:40]} {[%emt 00:03:34]} 28. Ba1 {[%clk
00:21:33]} {[%emt 00:03:22]} Bc5+ {[%clk 00:02:28]} {[%emt 00:17:42]} 29. Kh1
{[%clk 00:22:02]} Rce8 {[%clk 00:02:51]} {[%emt 00:00:07]} 30. Qc3 {[%clk
00:17:28]} {[%emt 00:05:03]} Nf2+ {[%clk 00:03:15]} {[%emt 00:00:07]} 31. Rxf2
{[%clk 00:17:10]} {[%emt 00:00:49]} Bd4 {[%clk 00:02:30]} {[%emt 00:01:15]} 32.
Qd2 {[%clk 00:14:41]} {[%emt 00:02:58]} Rxe1+ {[%clk 00:02:35]} {[%emt
00:00:25]} 33. Qxe1 {[%clk 00:15:03]} {[%emt 00:00:07]} Re8 {[%clk 00:02:49]}
{[%emt 00:00:17]} 34. Qf1 {[%clk 00:10:24]} {[%emt 00:05:09]} Bxf2 {[%clk
00:03:17]} {[%emt 00:00:02]} 35. Qxf2 {[%clk 00:10:47]} {[%emt 00:00:08]} a4
{[%clk 00:03:45]} {[%emt 00:00:02]} 36. h3 {[%clk 00:07:40]} {[%emt 00:03:35]}
axb3 {[%clk 00:02:56]} {[%emt 00:01:20]} 37. Kh2 {[%clk 00:05:03]} {[%emt
00:03:06]} Kf7 {[%clk 00:00:49]} {[%emt 00:02:38]} 38. f5 {[%clk 00:01:04]}
{[%emt 00:04:30]} g5 {[%clk 00:01:18]} 39. Qb2 {[%clk 00:01:04]} {[%emt
00:00:29]} Ke7 {[%clk 00:01:23]} {[%emt 00:00:25]} 40. Qxb3 {[%clk 00:00:33]}
{[%emt 00:01:00]} Kd8 {[%clk 00:00:35]} {[%emt 00:01:18]} 41. Qd3 {[%clk
00:14:07]} {[%emt 00:16:56]} Qe4 {[%clk 00:17:41]} {[%emt 00:13:25]} 42. Qf1
{[%clk 00:13:53]} {[%emt 00:00:43]} Kd7 {[%clk 00:07:39]} {[%emt 00:10:33]} 43.
f6 {[%clk 00:09:02]} {[%emt 00:05:21]} Qe6 {[%clk 00:01:56]} {[%emt 00:06:13]}
44. Qd3 {[%clk 00:04:41]} {[%emt 00:04:50]} Qe4 {[%clk 00:01:53]} {[%emt
00:00:34]} 45. Qf1 {[%clk 00:03:35]} {[%emt 00:01:36]} Qe6 {[%clk 00:02:22]} 46.
Bc3 {[%clk 00:03:36]} {[%emt 00:00:29]} h5 {[%clk 00:01:42]} {[%emt 00:01:10]}
47. Bd2 {[%clk 00:02:26]} {[%emt 00:01:40]} Rg8 {[%clk 00:01:43]} {[%emt
00:00:29]} 48. Bxg5 {[%clk 00:01:23]} {[%emt 00:01:33]} Rxg5 {[%clk 00:01:56]}
{[%emt 00:00:17]} 49. f7 {[%clk 00:01:48]} {[%emt 00:00:05]} Rf5 {[%clk
00:02:18]} {[%emt 00:00:07]} 50. f8=Q {[%clk 00:01:55]} {[%emt 00:00:24]} Rxf8
{[%clk 00:02:42]} {[%emt 00:00:06]} 51. Qxf8 {[%clk 00:02:21]} {[%emt
00:00:04]} Qxc4 {[%clk 00:03:02]} {[%emt 00:00:09]} 52. Qf5+ {[%clk 00:02:41]}
{[%emt 00:00:10]} Kc6 {[%clk 00:03:02]} {[%emt 00:00:25]} 53. Qxh5 {[%clk
00:03:09]} {[%emt 00:00:08]} b5 {[%clk 00:03:03]} {[%emt 00:00:29]} 54. Qe8+
{[%clk 00:02:31]} {[%emt 00:01:08]} Kb7 {[%clk 00:02:11]} {[%emt 00:01:21]} 55.
h4 {[%clk 00:02:09]} {[%emt 00:00:53]} b4 {[%clk 00:02:16]} {[%emt 00:00:25]}
56. h5 {[%clk 00:01:05]} {[%emt 00:01:34]} b3 {[%clk 00:01:49]} {[%emt
00:00:57]} 57. h6 {[%clk 00:01:02]} {[%emt 00:00:33]} Qd3 {[%clk 00:00:43]}
{[%emt 00:01:36]} 58. Nf4 {[%clk 00:00:32]} {[%emt 00:01:00]} Qc2+ {[%clk
00:01:04]} {[%emt 00:00:08]} 59. Qe2 {[%clk 00:00:44]} {[%emt 00:00:17]} Qb1
{[%clk 00:00:40]} {[%emt 00:00:56]} 60. Nd3 {[%clk 00:00:44]} {[%emt 00:00:30]}
Qa2 {[%clk 00:00:33]} {[%emt 00:00:37]} 61. Qb2 {[%clk 00:00:36]} {[%emt
00:00:38]} Qa5 {[%clk 00:00:32]} {[%emt 00:00:31]} 62. Qxb3+ {[%clk 00:00:44]}
{[%emt 00:00:22]} Ka7 {[%clk 00:00:40]} {[%emt 00:00:22]} 63. Nf4 {[%clk
00:00:38]} {[%emt 00:00:35]} Qd2+ {[%clk 00:00:33]} {[%emt 00:00:37]} 64. Kh3
{[%clk 00:00:55]} {[%emt 00:00:13]} Qe1 {[%clk 00:00:53]} {[%emt 00:00:11]} 65.
Qa3+ {[%clk 00:00:47]} {[%emt 00:00:38]} Kb8 {[%clk 00:00:53]} {[%emt
00:00:29]} 66. Qb3+ {[%clk 00:01:17]} {[%emt 00:00:01]} Ka7 {[%clk 00:01:02]}
{[%emt 00:00:21]} 67. Qa2+ {[%clk 00:01:45]} {[%emt 00:00:02]} Kb7 {[%clk
00:00:32]} {[%emt 00:00:59]} 68. Qd5+ {[%clk 00:01:51]} {[%emt 00:00:24]} c6
{[%clk 00:00:31]} {[%emt 00:00:32]} 69. Qxd6 {[%clk 00:02:08]} {[%emt
00:00:12]} Qh1+ {[%clk 00:00:45]} {[%emt 00:00:16]} 70. Kg4 {[%clk 00:02:36]}
{[%emt 00:00:02]} Qd1+ {[%clk 00:00:43]} {[%emt 00:00:33]} 71. Qxd1 {[%clk
00:03:04]} {[%emt 00:00:02]} 1-0

[Event "Masters Tournament (MTO)"]
[Site "Biel, Switzerland"]
[Date "2026.07.22"]
[Round "9.21"]
[White "Rappazzo, Johannes"]
[Black "Kunz, Andre"]
[Result "0-1"]
[TimeControl "100+30+30sec/move"]
[WhiteTitle "-"]
[BlackTitle "-"]
[WhiteFideId "1340069"]
[BlackFideId "24623652"]
[WhiteElo "2268"]
[BlackElo "2116"]

1. e4 {[%clk 01:40:57]} {[%emt 00:00:04]} c6 {[%clk 01:40:31]} {[%emt
00:00:30]} 2. d4 {[%clk 01:41:24]} {[%emt 00:00:02]} d5 {[%clk 01:40:47]}
{[%emt 00:00:14]} 3. e5 {[%clk 01:41:50]} {[%emt 00:00:03]} Bf5 {[%clk
01:40:38]} {[%emt 00:00:40]} 4. h4 {[%clk 01:42:12]} {[%emt 00:00:08]} h5
{[%clk 01:41:01]} {[%emt 00:00:07]} 5. Bd3 {[%clk 01:42:39]} {[%emt 00:00:03]}
Bxd3 {[%clk 01:41:19]} {[%emt 00:00:12]} 6. Qxd3 {[%clk 01:43:05]} {[%emt
00:00:03]} Qa5+ {[%clk 01:41:05]} {[%emt 00:00:44]} 7. b4 {[%clk 01:43:26]}
{[%emt 00:00:09]} Qa6 {[%clk 01:40:45]} {[%emt 00:00:51]} 8. Qd1 {[%clk
01:39:31]} {[%emt 00:04:25]} e6 {[%clk 01:40:24]} {[%emt 00:00:51]} 9. c3
{[%clk 01:39:36]} {[%emt 00:00:25]} Ne7 {[%clk 01:38:02]} {[%emt 00:02:51]} 10.
Ne2 {[%clk 01:30:08]} {[%emt 00:09:58]} Nf5 {[%clk 01:38:03]} {[%emt 00:00:30]}
11. Ng3 {[%clk 01:28:36]} {[%emt 00:02:02]} Nxg3 {[%clk 01:35:24]} {[%emt
00:03:09]} 12. fxg3 {[%clk 01:29:02]} {[%emt 00:00:03]} Nd7 {[%clk 01:34:36]}
{[%emt 00:01:19]} 13. a4 {[%clk 01:24:57]} {[%emt 00:04:35]} f6 {[%clk
01:30:10]} {[%emt 00:04:56]} 14. Qc2 {[%clk 01:02:19]} {[%emt 00:23:07]} O-O-O
{[%clk 01:27:12]} {[%emt 00:03:29]} 15. b5 {[%clk 00:54:25]} {[%emt 00:08:24]}
cxb5 {[%clk 01:21:31]} {[%emt 00:06:10]} 16. O-O {[%clk 00:53:59]} {[%emt
00:00:56]} Kb8 {[%clk 01:17:39]} {[%emt 00:04:23]} 17. Be3 {[%clk 00:45:01]}
{[%emt 00:09:28]} b4 {[%clk 01:14:02]} {[%emt 00:04:07]} 18. Qb2 {[%clk
00:37:17]} {[%emt 00:08:14]} Qd3 {[%clk 01:08:04]} {[%emt 00:06:28]} 19. Rf3
{[%clk 00:34:32]} {[%emt 00:03:14]} Qc4 {[%clk 01:03:06]} {[%emt 00:05:28]} 20.
Bf2 {[%clk 00:22:11]} {[%emt 00:12:51]} Rc8 {[%clk 00:56:50]} {[%emt 00:06:47]}
21. Kh2 {[%clk 00:19:15]} {[%emt 00:03:25]} fxe5 {[%clk 00:55:07]} {[%emt
00:02:13]} 22. cxb4 {[%clk 00:17:42]} {[%emt 00:02:04]} Bxb4 {[%clk 00:43:18]}
{[%emt 00:12:19]} 23. a5 {[%clk 00:09:55]} {[%emt 00:08:17]} Rhf8 {[%clk
00:36:55]} {[%emt 00:06:52]} 24. Ra4 {[%clk 00:06:13]} {[%emt 00:04:12]} Rxf3
{[%clk 00:36:47]} {[%emt 00:00:39]} 25. gxf3 {[%clk 00:04:52]} {[%emt
00:01:51]} Bc3 {[%clk 00:32:35]} {[%emt 00:04:41]} 26. Qa3 {[%clk 00:01:49]}
{[%emt 00:03:33]} Qc6 {[%clk 00:24:53]} {[%emt 00:08:12]} 27. a6 {[%clk
00:01:49]} {[%emt 00:00:30]} b5 {[%clk 00:22:03]} {[%emt 00:03:20]} 28. Nxc3
{[%clk 00:02:03]} {[%emt 00:00:16]} bxa4 {[%clk 00:18:19]} {[%emt 00:04:14]} 29.
Nxa4 {[%clk 00:02:26]} {[%emt 00:00:07]} Qxa6 {[%clk 00:17:30]} {[%emt
00:01:19]} 30. dxe5 {[%clk 00:02:04]} {[%emt 00:00:53]} Rc4 {[%clk 00:14:49]}
{[%emt 00:03:10]} 31. Qb3+ {[%clk 00:01:16]} {[%emt 00:01:19]} Qb7 {[%clk
00:15:15]} {[%emt 00:00:04]} 32. Qa2 {[%clk 00:01:10]} {[%emt 00:00:36]} Kc8
{[%clk 00:13:25]} {[%emt 00:02:19]} 33. Kg2 {[%clk 00:01:08]} {[%emt 00:00:32]}
Qb5 {[%clk 00:11:35]} {[%emt 00:02:19]} 34. Nb2 {[%clk 00:00:37]} {[%emt
00:01:03]} Rc2 {[%clk 00:11:47]} {[%emt 00:00:17]} 35. Qxa7 {[%clk 00:00:53]}
{[%emt 00:00:14]} Qxb2 {[%clk 00:09:31]} {[%emt 00:02:46]} 36. Qa6+ {[%clk
00:01:06]} {[%emt 00:00:17]} Kd8 {[%clk 00:09:38]} {[%emt 00:00:21]} 0-1

[Event "Masters Tournament (MTO)"]
[Site "Biel, Switzerland"]
[Date "2026.07.22"]
[Round "9.22"]
[White "Malli, Suvirr"]
[Black "Joly, Julien"]
[Result "0-1"]
[TimeControl "100+30+30sec/move"]
[WhiteTitle "-"]
[BlackTitle "-"]
[WhiteFideId "1341855"]
[BlackFideId "26082284"]
[WhiteElo "2120"]
[BlackElo "2257"]

1. e4 {[%clk 01:40:53]} {[%emt 00:00:07]} d6 {[%clk 01:40:37]} {[%emt
00:00:23]} 2. d4 {[%clk 01:41:17]} {[%emt 00:00:06]} Nf6 {[%clk 01:41:00]}
{[%emt 00:00:07]} 3. Nc3 {[%clk 01:41:43]} {[%emt 00:00:03]} g6 {[%clk
01:41:26]} {[%emt 00:00:05]} 4. f4 {[%clk 01:42:08]} {[%emt 00:00:05]} Bg7
{[%clk 01:41:51]} {[%emt 00:00:05]} 5. Nf3 {[%clk 01:42:33]} {[%emt 00:00:05]}
O-O {[%clk 01:42:17]} {[%emt 00:00:04]} 6. Bd3 {[%clk 01:42:53]} {[%emt
00:00:10]} Na6 {[%clk 01:42:40]} {[%emt 00:00:06]} 7. O-O {[%clk 01:42:53]}
{[%emt 00:00:30]} c5 {[%clk 01:43:07]} {[%emt 00:00:04]} 8. d5 {[%clk
01:43:14]} {[%emt 00:00:09]} c4 {[%clk 01:43:32]} {[%emt 00:00:05]} 9. Bxc4
{[%clk 01:33:18]} {[%emt 00:10:25]} b5 {[%clk 01:42:57]} {[%emt 00:01:06]} 10.
Bd3 {[%clk 01:28:36]} {[%emt 00:05:12]} b4 {[%clk 01:43:18]} {[%emt 00:00:09]}
11. Nb1 {[%clk 01:25:19]} {[%emt 00:03:46]} Nc5 {[%clk 01:42:10]} {[%emt
00:01:38]} 12. Qe2 {[%clk 01:19:00]} {[%emt 00:06:49]} a5 {[%clk 01:41:16]}
{[%emt 00:01:24]} 13. Kh1 {[%clk 01:07:06]} {[%emt 00:12:25]} Nh5 {[%clk
01:36:31]} {[%emt 00:05:15]} 14. Bc4 {[%clk 00:55:14]} {[%emt 00:12:22]} Na4
{[%clk 01:25:05]} {[%emt 00:11:56]} 15. Bb5 {[%clk 00:48:37]} {[%emt 00:07:07]}
Nc5 {[%clk 01:12:47]} {[%emt 00:12:47]} 16. a3 {[%clk 00:30:50]} {[%emt
00:18:17]} Rb8 {[%clk 01:07:14]} {[%emt 00:06:03]} 17. axb4 {[%clk 00:27:41]}
{[%emt 00:03:40]} axb4 {[%clk 01:04:29]} {[%emt 00:03:14]} 18. Bc4 {[%clk
00:27:20]} {[%emt 00:00:52]} Bg4 {[%clk 01:00:19]} {[%emt 00:04:40]} 19. Qe3
{[%clk 00:22:53]} {[%emt 00:04:56]} Qb6 {[%clk 00:51:36]} {[%emt 00:09:14]} 20.
Nfd2 {[%clk 00:15:28]} {[%emt 00:07:55]} Rfc8 {[%clk 00:47:15]} {[%emt
00:04:51]} 21. Be2 {[%clk 00:07:51]} {[%emt 00:08:06]} Bd4 {[%clk 00:34:59]}
{[%emt 00:12:46]} 22. Qxd4 {[%clk 00:08:02]} {[%emt 00:00:20]} Bxe2 {[%clk
00:35:27]} {[%emt 00:00:01]} 23. Re1 {[%clk 00:05:28]} {[%emt 00:03:04]} Qb5
{[%clk 00:24:46]} {[%emt 00:11:13]} 24. Qe3 {[%clk 00:03:57]} {[%emt 00:01:59]}
Bg4 {[%clk 00:24:21]} {[%emt 00:00:56]} 25. b3 {[%clk 00:03:39]} {[%emt
00:00:48]} Ra8 {[%clk 00:16:25]} {[%emt 00:08:25]} 26. Rxa8 {[%clk 00:04:02]}
{[%emt 00:00:07]} Rxa8 {[%clk 00:16:55]} 27. Bb2 {[%clk 00:02:38]} {[%emt
00:01:53]} Ra2 {[%clk 00:16:46]} {[%emt 00:00:40]} 28. Qd4 {[%clk 00:01:54]}
{[%emt 00:01:14]} f6 {[%clk 00:16:53]} {[%emt 00:00:22]} 29. e5 {[%clk
00:01:36]} {[%emt 00:00:49]} Bf5 {[%clk 00:14:14]} {[%emt 00:03:09]} 30. exd6
{[%clk 00:01:25]} {[%emt 00:00:40]} exd6 {[%clk 00:14:43]} 31. Nc4 {[%clk
00:01:01]} {[%emt 00:00:54]} Ne4 {[%clk 00:13:17]} {[%emt 00:01:57]} 32. g4
{[%clk 00:00:43]} {[%emt 00:00:48]} Rxb2 {[%clk 00:09:42]} {[%emt 00:04:05]} 33.
Nxb2 {[%clk 00:00:57]} {[%emt 00:00:16]} Qe8 {[%clk 00:10:11]} {[%emt
00:00:01]} 34. Kg1 {[%clk 00:00:40]} {[%emt 00:00:46]} Nxf4 {[%clk 00:10:31]}
{[%emt 00:00:11]} 35. gxf5 {[%clk 00:00:47]} {[%emt 00:00:23]} gxf5 {[%clk
00:10:48]} {[%emt 00:00:13]} 36. Qxf6 {[%clk 00:00:31]} {[%emt 00:00:45]} Nxf6
{[%clk 00:06:40]} {[%emt 00:04:38]} 37. Rxe8+ {[%clk 00:01:00]} Nxe8 {[%clk
00:07:10]} 38. c4 {[%clk 00:01:17]} {[%emt 00:00:12]} Kf7 {[%clk 00:04:00]}
{[%emt 00:03:41]} 39. Kf2 {[%clk 00:01:22]} {[%emt 00:00:24]} Kf6 {[%clk
00:02:16]} {[%emt 00:02:15]} 40. Ke3 {[%clk 00:01:06]} {[%emt 00:00:46]} Ke5
{[%clk 00:01:04]} {[%emt 00:01:41]} 41. Nd2 {[%clk 00:24:08]} {[%emt 00:07:29]}
Ng2+ {[%clk 00:29:58]} {[%emt 00:01:35]} 42. Kf2 {[%clk 00:19:37]} {[%emt
00:05:00]} Nh4 {[%clk 00:25:38]} {[%emt 00:04:51]} 43. Ke3 {[%clk 00:14:57]}
{[%emt 00:05:11]} Ng2+ {[%clk 00:13:42]} {[%emt 00:12:25]} 44. Kf2 {[%clk
00:14:59]} {[%emt 00:00:28]} Nh4 {[%clk 00:13:01]} {[%emt 00:01:12]} 45. Ke3
{[%clk 00:15:23]} {[%emt 00:00:05]} f4+ {[%clk 00:08:45]} {[%emt 00:04:46]} 46.
Kd3 {[%clk 00:15:08]} {[%emt 00:00:45]} Nf6 {[%clk 00:08:21]} {[%emt 00:00:53]}
47. Nd1 {[%clk 00:14:36]} {[%emt 00:01:03]} Nd7 {[%clk 00:05:58]} {[%emt
00:02:54]} 48. Nf2 {[%clk 00:12:10]} {[%emt 00:02:55]} Nc5+ {[%clk 00:06:24]}
{[%emt 00:00:04]} 49. Ke2 {[%clk 00:05:41]} {[%emt 00:06:59]} Kd4 {[%clk
00:06:38]} {[%emt 00:00:16]} 50. Nh3 {[%clk 00:04:42]} {[%emt 00:01:29]} f3+
{[%clk 00:05:50]} {[%emt 00:01:18]} 51. Ke1 {[%clk 00:03:53]} {[%emt 00:01:19]}
Ke3 {[%clk 00:02:19]} {[%emt 00:04:01]} 52. Nf1+ {[%clk 00:03:39]} {[%emt
00:00:44]} Kd3 {[%clk 00:02:39]} {[%emt 00:00:10]} 53. Nd2 {[%clk 00:03:00]}
{[%emt 00:01:09]} Ng2+ {[%clk 00:02:53]} {[%emt 00:00:17]} 54. Kd1 {[%clk
00:03:26]} {[%emt 00:00:04]} Ne3+ {[%clk 00:03:17]} {[%emt 00:00:05]} 55. Ke1
{[%clk 00:03:37]} {[%emt 00:00:19]} Kc2 {[%clk 00:03:07]} {[%emt 00:00:40]} 56.
Nf2 {[%clk 00:02:18]} {[%emt 00:01:45]} Ng2+ {[%clk 00:03:34]} {[%emt
00:00:07]} 0-1